fUSD/lending_fUSD_20251115
["ID","MTS","AMOUNT","RATE_DAILY","PERIOD"]
[394076309,1763244641510,-3576.39248094,0.00030289,2]
[394076310,1763244641519,-12852.43058998,0.00030289,2]
[394076311,1763244641528,-297.16919071,0.00030289,15]
[394076312,1763244641537,-1502.14270285,0.00030313,2]
[394076313,1763244641546,-600.0,0.00030339,2]
[394076314,1763244641556,-32772.700404,0.00030513,3]
[394076315,1763244641565,-150.37,0.00030513,2]
[394076316,1763244641574,-821.0,0.00030523,2]
[394076317,1763244641584,-1598.0,0.00030523,2]
[394076318,1763244641593,-1275.0,0.00030523,2]
[394076319,1763244641603,-793.0,0.00030523,2]
[394076320,1763244641612,-6487.0,0.00030523,2]
[394076321,1763244641622,-3170.0,0.00030523,2]
[394076322,1763244641631,-1603.0,0.00030523,2]
[394076323,1763244641640,-150.0,0.00030782,2]
[394076324,1763244641650,-150.0,0.00030782,2]
[394076325,1763244641664,-150.0,0.00030782,2]
[394076326,1763244641673,-150.0,0.00030782,2]
[394076327,1763244641682,-150.0,0.00030782,2]
[394076328,1763244641692,-150.0,0.00030782,2]
[394076329,1763244641702,-150.0,0.00030782,2]
[394076330,1763244641711,-608.0,0.00030782,2]
[394076331,1763244641720,-1318.0,0.00030782,2]
[394076332,1763244641729,-311.1,0.00030938,30]
[394076333,1763244641739,-173.36130234,0.00031394,2]
[394076334,1763244641749,-181.53,0.00031507,120]
[394076335,1763244641758,-12649.0,0.00031617,3]
[394076336,1763244641767,-181.93337755,0.00031735,7]
[394076337,1763244641776,-222.68,0.000318,7]
[394076338,1763244641786,-252.0,0.00032189,2]
[394076339,1763244641795,-252.0,0.00032189,2]
[394076340,1763244641805,-252.0,0.00032189,2]
[394076341,1763244641814,-252.0,0.00032189,2]
[394076342,1763244641823,-252.0,0.00032189,2]
[394076343,1763244641832,-252.0,0.00032189,2]
[394076344,1763244641843,-252.0,0.00032189,2]
[394076345,1763244641852,-252.0,0.00032189,2]
[394076346,1763244641861,-252.0,0.00032189,2]
[394076347,1763244641870,-252.0,0.00032189,2]
[394076348,1763244641880,-246.0,0.00032189,2]
[394076349,1763244641889,-246.0,0.00032189,2]
[394076350,1763244641898,-246.0,0.00032189,2]
[394076351,1763244641908,-246.0,0.00032189,2]
[394076352,1763244641917,-246.0,0.00032189,2]
[394076353,1763244641926,-246.0,0.00032189,2]
[394076354,1763244641935,-246.0,0.00032189,2]
[394076355,1763244641945,-246.0,0.00032189,2]
[394076356,1763244641955,-246.0,0.00032189,2]
[394076357,1763244641965,-246.0,0.00032189,2]
[394076358,1763244641975,-246.0,0.00032189,2]
[394076359,1763244641985,-246.0,0.00032189,2]
[394076360,1763244641995,-246.0,0.00032189,2]
[394076361,1763244642005,-246.0,0.00032189,2]
[394076362,1763244642015,-246.0,0.00032189,2]
[394076363,1763244642025,-246.0,0.00032189,2]
[394076364,1763244642035,-246.0,0.00032189,2]
[394076365,1763244642047,-246.0,0.00032189,2]
[394076366,1763244642057,-246.0,0.00032189,2]
[394076367,1763244642067,-246.0,0.00032189,2]
[394076368,1763244642077,-246.0,0.00032189,2]
[394076369,1763244642091,-246.0,0.00032189,2]
[394076370,1763244642101,-246.0,0.00032189,2]
[394076371,1763244642110,-246.0,0.00032189,2]
[394076372,1763244642120,-246.0,0.00032189,2]
[394076373,1763244642129,-4518.0,0.00032657,5]
[394076374,1763244642139,-150.37,0.00032847,2]
[394076375,1763244642148,-32772.700404,0.00032857,3]
[394076376,1763244642158,-500.0,0.00032873,5]
[394076377,1763244642168,-150.0,0.00032873,5]
[394076378,1763244642178,-150.62753141,0.00032873,5]
[394076379,1763244642188,-157.17051194,0.00032873,5]
[394076380,1763244642201,-500.0,0.00032877,2]
[394076381,1763244642211,-500.0,0.00032877,7]
[394076382,1763244642221,-500.0,0.00032877,7]
[394076383,1763244642231,-300.0,0.00032877,7]
[394076384,1763244642240,-500.0,0.00032877,7]
[394076385,1763244642250,-311.1,0.0003295,30]
[394076386,1763244642260,-531.0,0.00033,14]
[394076387,1763244642270,-174.0,0.00033,14]
[394076388,1763244642280,-164.0,0.00033,14]
[394076389,1763244642290,-3576.39248094,0.00033052,2]
[394076390,1763244642300,-12852.43058998,0.00033052,2]
[394076391,1763244642310,-297.16919071,0.00033052,15]
[394076392,1763244642320,-1502.14270285,0.0003307,2]
[394076393,1763244642330,-531.0,0.00033151,30]
[394076394,1763244642340,-184.50069854,0.00033421,5]
[394076395,1763244642350,-531.0,0.00033425,30]
[394076396,1763244642359,-821.0,0.00033523,2]
[394076397,1763244642369,-1598.0,0.00033523,2]
[394076398,1763244642379,-1275.0,0.00033523,2]
[394076400,1763244642389,-793.0,0.00033523,2]
[394076401,1763244642398,-6487.0,0.00033523,2]
[394076402,1763244642407,-3170.0,0.00033523,2]
[394076403,1763244642417,-600.0,0.00033554,2]
[394076404,1763244642426,-212028.0,0.000336,2]
[394076405,1763244642436,-492.0,0.00033671,2]
[394076406,1763244642445,-150.37,0.00033678,2]
[394076407,1763244642454,-32772.700404,0.00033689,3]
[394076408,1763244642464,-531.0,0.00033699,30]
[394076409,1763244642473,-150.0,0.00033782,2]
[394076410,1763244642482,-150.0,0.00033782,2]
[394076411,1763244642492,-150.0,0.00033782,2]
[394076412,1763244642501,-150.0,0.00033782,2]
[394076413,1763244642511,-150.0,0.00033782,2]
[394076414,1763244642520,-150.0,0.00033782,2]
[394076415,1763244642530,-608.0,0.00033782,2]
[394076416,1763244642539,-1318.0,0.00033782,2]
[394076417,1763244642548,-150.37,0.0003389,2]
[394076418,1763244642558,-150.37,0.0003389,2]
[394076419,1763244642567,-150.37,0.0003389,2]
[394076420,1763244642576,-531.0,0.00033973,30]
[394076421,1763244642587,-150.0,0.00034042,37]
[394076422,1763244642597,-5518.0,0.000344,3]
[394076423,1763244642606,-174.0,0.00034521,30]
[394076424,1763244642615,-531.0,0.00034521,30]
[394076425,1763244642624,-150.37,0.0003469,2]
[394076426,1763244642634,-1708.0,0.00034727,3]
[394076427,1763244642643,-1567.61,0.00034751,30]
[394076428,1763244642652,-215.10664739,0.00034795,2]
[394076429,1763244642672,-311.1,0.00034962,30]
[394076430,1763244642682,-215.10664739,0.00035078,2]
[394076431,1763244642691,-5518.0,0.000352,5]
[394076432,1763244642700,-701.0,0.00035443,2]
[394076433,1763244642710,-701.0,0.00035443,2]
[394076434,1763244642721,-701.0,0.00035443,2]
[394076436,1763244642730,-701.0,0.00035443,2]
[394076438,1763244642740,-701.0,0.00035443,2]
[394076439,1763244642748,-701.0,0.00035443,2]
[394076441,1763244642757,-701.0,0.00035443,2]
[394076443,1763244642766,-430.0,0.00035443,2]
[394076444,1763244642775,-430.0,0.00035443,2]
[394076445,1763244642784,-430.0,0.00035443,2]
[394076447,1763244642793,-430.0,0.00035443,2]
[394076448,1763244642802,-430.0,0.00035443,2]
[394076449,1763244642812,-430.0,0.00035443,2]
[394076450,1763244642821,-430.0,0.00035443,2]
[394076451,1763244642830,-430.0,0.00035443,2]
[394076452,1763244642842,-430.0,0.00035443,2]
[394076453,1763244642851,-430.0,0.00035443,2]
[394076454,1763244642860,-430.0,0.00035443,2]
[394076455,1763244642869,-430.0,0.00035443,2]
[394076456,1763244642878,-430.0,0.00035443,2]
[394076457,1763244642888,-430.0,0.00035443,2]
[394076458,1763244642897,-430.0,0.00035443,2]
[394076459,1763244642906,-430.0,0.00035443,2]
[394076460,1763244642915,-430.0,0.00035443,2]
[394076461,1763244642924,-316.0,0.00035443,2]
[394076462,1763244642934,-316.0,0.00035443,2]
[394076463,1763244642943,-316.0,0.00035443,2]
[394076464,1763244642952,-316.0,0.00035443,2]
[394076465,1763244642962,-316.0,0.00035443,2]
[394076466,1763244642971,-316.0,0.00035443,2]
[394076467,1763244642980,-258.0,0.00035443,2]
[394076468,1763244642989,-258.0,0.00035443,2]
[394076469,1763244642999,-258.0,0.00035443,2]
[394076470,1763244643008,-258.0,0.00035443,2]
[394076471,1763244643017,-258.0,0.00035443,2]
[394076472,1763244643026,-258.0,0.00035443,2]
[394076473,1763244643035,-258.0,0.00035443,2]
[394076474,1763244643045,-258.0,0.00035443,2]
[394076475,1763244643055,-258.0,0.00035443,2]
[394076476,1763244643064,-258.0,0.00035443,2]
[394076478,1763244643074,-258.0,0.00035443,2]
[394076479,1763244643084,-258.0,0.00035443,2]
[394076480,1763244643102,-258.0,0.00035443,2]
[394076481,1763244643111,-258.0,0.00035443,2]
[394076482,1763244643121,-215.10664739,0.00035594,2]
[394076483,1763244643130,-26177.0,0.00035641,2]
[394076484,1763244643141,-150.37,0.00035679,2]
[394076485,1763244643150,-666.0,0.00035689,30]
[394076486,1763244643159,-300.0,0.00035689,10]
[394076487,1763244643168,-300.0,0.00035689,10]
[394076488,1763244643177,-666.0,0.00035689,30]
[394076489,1763244643186,-151.0,0.0003569,31]
[394076490,1763244643196,-151.0,0.0003569,31]
[394076491,1763244643205,-235.050797,0.0003569,31]
[394076492,1763244643215,-235.050797,0.0003569,31]
[394076493,1763244643224,-235.050797,0.0003569,31]
[394076494,1763244643233,-235.050797,0.0003569,31]
[394076495,1763244643243,-151.0,0.0003569,31]
[394076496,1763244643253,-151.0,0.0003569,31]
[394076497,1763244643263,-152.061198,0.0003569,31]
[394076498,1763244643273,-158.018492,0.0003569,31]
[394076499,1763244643282,-154.30572,0.0003569,31]
[394076500,1763244643292,-151.0,0.0003569,31]
[394076501,1763244643301,-151.0,0.0003569,31]
[394076502,1763244643310,-152.868165,0.0003569,31]
[394076503,1763244643320,-151.0,0.0003569,31]
[394076504,1763244643331,-440.834705,0.0003569,31]
[394076505,1763244643340,-440.834705,0.0003569,31]
[394076506,1763244643350,-440.834705,0.0003569,31]
[394076507,1763244643360,-182.44842,0.0003569,31]
[394076508,1763244643369,-440.834705,0.0003569,31]
[394076509,1763244643378,-151.0,0.0003569,31]
[394076511,1763244643388,-151.0,0.0003569,31]
[394076513,1763244643397,-151.0,0.0003569,31]
[394076515,1763244643407,-151.0,0.0003569,31]
[394076516,1763244643416,-151.0,0.0003569,31]
[394076517,1763244643604,-531.075131,0.0003569,31]
[394076518,1763244643615,-154.696196,0.0003569,31]
[394076519,1763244643625,-531.075131,0.0003569,31]
[394076520,1763244643634,-531.075131,0.0003569,31]
[394076521,1763244643644,-531.075131,0.0003569,31]
[394076522,1763244643654,-151.0,0.0003569,31]
[394076523,1763244643667,-151.0,0.0003569,31]
[394076524,1763244643676,-151.0,0.0003569,31]
[394076525,1763244643686,-151.0,0.0003569,31]
[394076526,1763244643695,-151.0,0.0003569,31]
[394076527,1763244643704,-151.0,0.0003569,31]
[394076528,1763244643713,-151.0,0.0003569,31]
[394076529,1763244643723,-151.0,0.0003569,31]
[394076530,1763244643733,-151.0,0.0003569,31]
[394076531,1763244643742,-151.0,0.0003569,31]
[394076532,1763244643752,-151.0,0.0003569,31]
[394076533,1763244643760,-151.0,0.0003569,31]
[394076534,1763244643769,-154.019544,0.0003569,31]
[394076535,1763244643782,-151.0,0.0003569,31]
[394076536,1763244643793,-151.0,0.0003569,31]
[394076537,1763244643803,-155.883635,0.0003569,31]
[394076538,1763244643812,-151.0,0.0003569,31]
[394076539,1763244643822,-151.0,0.0003569,31]
[394076540,1763244643831,-151.0,0.0003569,31]
[394076541,1763244643841,-151.0,0.0003569,31]
[394076542,1763244643851,-151.0,0.0003569,31]
[394076543,1763244643860,-152.806514,0.0003569,31]
[394076544,1763244643870,-326.765039,0.0003569,31]
[394076545,1763244643880,-326.765039,0.0003569,31]
[394076546,1763244643890,-326.765039,0.0003569,31]
[394076547,1763244643901,-326.765039,0.0003569,31]
[394076548,1763244643910,-153.153507,0.0003569,31]
[394076549,1763244643920,-151.0,0.0003569,31]
[394076550,1763244643931,-151.0,0.0003569,31]
[394076551,1763244643941,-151.0,0.0003569,31]
[394076552,1763244643951,-396.645407,0.0003569,31]
[394076553,1763244643961,-396.645407,0.0003569,31]
[394076554,1763244643971,-151.0,0.0003569,31]
[394076555,1763244643985,-396.645407,0.0003569,31]
[394076556,1763244643995,-396.645407,0.0003569,31]
[394076557,1763244644006,-151.0,0.0003569,31]
[394076558,1763244644016,-151.0,0.0003569,31]
[394076559,1763244644026,-151.0,0.0003569,31]
[394076560,1763244644037,-151.0,0.0003569,31]
[394076561,1763244644047,-151.0,0.0003569,31]
[394076562,1763244644057,-164.710463,0.0003569,31]
[394076563,1763244644066,-151.0,0.0003569,31]
[394076564,1763244644076,-151.0,0.0003569,31]
[394076565,1763244644085,-151.0,0.0003569,31]
[394076566,1763244644095,-151.0,0.0003569,31]
[394076567,1763244644105,-151.0,0.0003569,31]
[394076568,1763244644115,-151.0,0.0003569,31]
[394076569,1763244644124,-159.140327,0.0003569,31]
[394076570,1763244644134,-151.0,0.0003569,31]
[394076571,1763244644143,-151.0,0.0003569,31]
[394076572,1763244644155,-213.876581,0.0003569,31]
[394076573,1763244644167,-151.0,0.0003569,31]
[394076574,1763244644177,-151.0,0.0003569,31]
[394076575,1763244644187,-213.876581,0.0003569,31]
[394076576,1763244644196,-151.0,0.0003569,31]
[394076577,1763244644206,-151.0,0.0003569,31]
[394076578,1763244644215,-151.0,0.0003569,31]
[394076579,1763244644225,-213.876581,0.0003569,31]
[394076580,1763244644235,-151.0,0.0003569,31]
[394076581,1763244644244,-158.633299,0.0003569,31]
[394076582,1763244644254,-213.876581,0.0003569,31]
[394076583,1763244644263,-151.0,0.0003569,31]
[394076584,1763244644272,-151.0,0.0003569,31]
[394076585,1763244644282,-151.0,0.0003569,31]
[394076586,1763244644292,-151.0,0.0003569,31]
[394076587,1763244644301,-246.593694,0.0003569,31]
[394076588,1763244644310,-246.593694,0.0003569,31]
[394076589,1763244644319,-246.593694,0.0003569,31]
[394076590,1763244644328,-246.593694,0.0003569,31]
[394076591,1763244644339,-151.0,0.0003569,31]
[394076592,1763244644348,-153.72047,0.0003569,31]
[394076593,1763244644357,-151.0,0.0003569,31]
[394076594,1763244644376,-151.0,0.0003569,31]
[394076595,1763244644387,-151.0,0.0003569,31]
[394076596,1763244644397,-151.0,0.0003569,31]
[394076597,1763244644408,-151.0,0.0003569,31]
[394076598,1763244644418,-151.0,0.0003569,31]
[394076599,1763244644428,-151.0,0.0003569,31]
[394076600,1763244644438,-169.669524,0.0003569,31]
[394076601,1763244644448,-153.285804,0.0003569,31]
[394076602,1763244644458,-161.34422,0.0003569,31]
[394076603,1763244644468,-153.285804,0.0003569,31]
[394076604,1763244644479,-187.205204,0.0003569,31]
[394076605,1763244644489,-153.285804,0.0003569,31]
[394076606,1763244644499,-153.285804,0.0003569,31]
[394076607,1763244644508,-151.0,0.0003569,31]
[394076608,1763244644518,-151.0,0.0003569,31]
[394076609,1763244644527,-151.0,0.0003569,31]
[394076610,1763244644537,-151.0,0.0003569,31]
[394076611,1763244644547,-151.0,0.0003569,31]
[394076612,1763244644556,-151.0,0.0003569,31]
[394076613,1763244644566,-151.0,0.0003569,31]
[394076614,1763244644575,-151.0,0.0003569,31]
[394076615,1763244644585,-151.0,0.0003569,31]
[394076616,1763244644595,-240.97154,0.0003569,31]
[394076617,1763244644605,-473.7554,0.0003569,31]
[394076618,1763244644615,-473.7554,0.0003569,31]
[394076619,1763244644624,-473.7554,0.0003569,31]
[394076620,1763244644634,-151.0,0.0003569,31]
[394076621,1763244644643,-151.0,0.0003569,31]
[394076622,1763244644653,-473.7554,0.0003569,31]
[394076623,1763244644666,-151.0,0.0003569,31]
[394076624,1763244644675,-151.0,0.0003569,31]
[394076625,1763244644685,-252.409827,0.0003569,31]
[394076626,1763244644695,-151.0,0.0003569,31]
[394076627,1763244644705,-1348.898314,0.0003569,28]
[394076628,1763244644715,-1348.898314,0.0003569,28]
[394076629,1763244644725,-1348.898314,0.0003569,28]
[394076630,1763244644735,-1348.898314,0.0003569,28]
[394076631,1763244644745,-151.0,0.0003569,31]
[394076632,1763244644755,-151.0,0.0003569,31]
[394076633,1763244644765,-163.451954,0.0003569,31]
[394076634,1763244644775,-163.451954,0.0003569,31]
[394076635,1763244644786,-163.451954,0.0003569,31]
[394076636,1763244644796,-163.451954,0.0003569,31]
[394076637,1763244644806,-152.564607,0.0003569,31]
[394076638,1763244644816,-151.0,0.0003569,31]
[394076639,1763244644826,-151.0,0.0003569,31]
[394076640,1763244644835,-215.10664739,0.00035711,2]
[394076641,1763244644846,-320.56766368,0.00035765,2]
[394076642,1763244644856,-1000.0,0.000358,7]
[394076643,1763244644866,-152.928777,0.000358,31]
[394076644,1763244644876,-151.0,0.000358,31]
[394076645,1763244644886,-151.0,0.000358,31]
[394076646,1763244644897,-223.859606,0.000358,31]
[394076647,1763244644906,-223.859606,0.000358,31]
[394076648,1763244644920,-223.859606,0.000358,31]
[394076649,1763244644930,-151.0,0.000358,31]
[394076650,1763244644940,-223.859606,0.000358,31]
[394076651,1763244644950,-151.0,0.000358,31]
[394076652,1763244644960,-151.0,0.000358,31]
[394076653,1763244644971,-154.915387,0.000358,31]
[394076654,1763244644982,-151.0,0.000358,31]
[394076655,1763244644992,-151.0,0.000358,31]
[394076656,1763244645001,-151.0,0.000358,31]
[394076657,1763244645011,-151.0,0.000358,31]
[394076658,1763244645021,-151.0,0.000358,31]
[394076659,1763244645031,-151.0,0.000358,31]
[394076660,1763244645041,-151.0,0.000358,31]
[394076661,1763244645050,-151.0,0.000358,31]
[394076662,1763244645060,-151.0,0.000358,31]
[394076663,1763244645070,-151.0,0.000358,31]
[394076664,1763244645080,-151.0,0.000358,31]
[394076665,1763244645090,-355.273089,0.000358,31]
[394076666,1763244645100,-355.273089,0.000358,31]
[394076667,1763244645110,-151.0,0.000358,31]
[394076668,1763244645119,-355.273089,0.000358,31]
[394076669,1763244645130,-151.0,0.000358,31]
[394076670,1763244645140,-355.273089,0.000358,31]
[394076671,1763244645149,-151.0,0.000358,31]
[394076672,1763244645159,-151.0,0.000358,31]
[394076673,1763244645168,-151.0,0.000358,31]
[394076674,1763244645178,-192.34866,0.000358,31]
[394076675,1763244645187,-151.0,0.000358,31]
[394076676,1763244645196,-151.0,0.000358,31]
[394076677,1763244645206,-151.0,0.000358,31]
[394076678,1763244645215,-151.0,0.000358,31]
[394076679,1763244645225,-151.0,0.000358,31]
[394076680,1763244645235,-151.0,0.000358,31]
[394076681,1763244645245,-151.0,0.000358,31]
[394076682,1763244645254,-151.0,0.000358,31]
[394076683,1763244645265,-178.013643,0.000358,31]
[394076684,1763244645284,-179.53097,0.000358,31]
[394076685,1763244645297,-179.53097,0.000358,31]
[394076686,1763244645306,-179.53097,0.000358,31]
[394076687,1763244645319,-179.53097,0.000358,31]
[394076688,1763244645328,-300.0,0.00035808,10]
[394076689,1763244645338,-300.0,0.00035808,10]
[394076690,1763244645348,-666.0,0.00035808,30]
[394076691,1763244645357,-3576.39248094,0.00035814,2]
[394076692,1763244645367,-12852.43058998,0.00035814,2]
[394076693,1763244645376,-297.16919071,0.00035814,15]
[394076694,1763244645386,-1502.14270285,0.00035827,2]
[394076695,1763244645396,-753.2,0.000359,14]
[394076696,1763244645406,-5000.0,0.00036008,2]
[394076697,1763244645415,-300.0,0.00036019,10]
[394076698,1763244645424,-300.0,0.00036019,10]
[394076699,1763244645434,-666.0,0.00036019,30]
[394076700,1763244645443,-25000.0,0.0003602,2]
[394076701,1763244645453,-500.997914,0.0003602,31]
[394076702,1763244645463,-151.0,0.0003602,31]
[394076703,1763244645472,-500.997914,0.0003602,31]
[394076704,1763244645482,-500.997914,0.0003602,31]
[394076705,1763244645491,-500.997914,0.0003602,31]
[394076706,1763244645501,-151.589397,0.0003602,31]
[394076707,1763244645510,-151.0,0.0003602,31]
[394076708,1763244645519,-188.737272,0.0003602,31]
[394076709,1763244645528,-151.0,0.0003602,31]
[394076710,1763244645538,-151.0,0.0003602,31]
[394076711,1763244645547,-198.650718,0.0003602,31]
[394076712,1763244645557,-188.737272,0.0003602,31]
[394076713,1763244645566,-198.650718,0.0003602,31]
[394076714,1763244645576,-188.737272,0.0003602,31]
[394076715,1763244645585,-151.0,0.0003602,31]
[394076716,1763244645596,-198.650718,0.0003602,31]
[394076717,1763244645605,-154.259794,0.0003602,31]
[394076718,1763244645614,-151.0,0.0003602,31]
[394076719,1763244645624,-188.737272,0.0003602,31]
[394076720,1763244645633,-151.0,0.0003602,31]
[394076721,1763244645643,-294.073412,0.0003602,31]
[394076722,1763244645652,-198.650718,0.0003602,31]
[394076723,1763244645664,-151.0,0.0003602,31]
[394076724,1763244645674,-151.0,0.0003602,30]
[394076725,1763244645684,-294.073412,0.0003602,31]
[394076726,1763244645694,-151.0,0.0003602,31]
[394076727,1763244645707,-294.073412,0.0003602,31]
[394076728,1763244645717,-151.0,0.0003602,31]
[394076729,1763244645727,-153.035652,0.0003602,31]
[394076730,1763244645736,-151.0,0.0003602,31]
[394076731,1763244645746,-294.073412,0.0003602,31]
[394076732,1763244645755,-153.035652,0.0003602,31]
[394076733,1763244645766,-151.0,0.0003602,31]
[394076734,1763244645775,-151.0,0.0003602,31]
[394076735,1763244645784,-153.035652,0.0003602,31]
[394076736,1763244645793,-151.0,0.0003602,31]
[394076737,1763244645803,-184.448295,0.0003602,31]
[394076738,1763244645811,-2834.887955,0.0003602,30]
[394076739,1763244645821,-153.035652,0.0003602,31]
[394076740,1763244645830,-5000.0,0.00036039,2]
[394076741,1763244645839,-151.0,0.0003604,14]
[394076742,1763244645849,-300.0,0.00036042,10]
[394076743,1763244645859,-360.43085075,0.00036042,10]
[394076744,1763244645869,-25000.0,0.00036043,2]
[394076745,1763244645879,-261.0,0.00036069,2]
[394076746,1763244645888,-261.0,0.00036069,2]
[394076747,1763244645898,-261.0,0.00036069,2]
[394076748,1763244645908,-261.0,0.00036069,2]
[394076749,1763244645918,-261.0,0.00036069,2]
[394076750,1763244645928,-261.0,0.00036069,2]
[394076751,1763244645937,-247.0,0.00036069,2]
[394076752,1763244645947,-247.0,0.00036069,2]
[394076753,1763244645957,-247.0,0.00036069,2]
[394076754,1763244645967,-247.0,0.00036069,2]
[394076755,1763244645976,-247.0,0.00036069,2]
[394076756,1763244645986,-247.0,0.00036069,2]
[394076757,1763244645995,-247.0,0.00036069,2]
[394076758,1763244646004,-247.0,0.00036069,2]
[394076759,1763244646014,-247.0,0.00036069,2]
[394076761,1763244646115,-247.0,0.00036069,2]
[394076762,1763244646124,-247.0,0.00036069,2]
[394076763,1763244646134,-247.0,0.00036069,2]
[394076764,1763244646143,-247.0,0.00036069,2]
[394076765,1763244646152,-247.0,0.00036069,2]
[394076766,1763244646161,-253.0,0.00036069,2]
[394076767,1763244646170,-253.0,0.00036069,2]
[394076768,1763244646179,-253.0,0.00036069,2]
[394076769,1763244646188,-253.0,0.00036069,2]
[394076770,1763244646197,-253.0,0.00036069,2]
[394076771,1763244646207,-253.0,0.00036069,2]
[394076772,1763244646216,-246.0,0.00036069,2]
[394076773,1763244646225,-246.0,0.00036069,2]
[394076774,1763244646234,-246.0,0.00036069,2]
[394076775,1763244646243,-246.0,0.00036069,2]
[394076776,1763244646253,-246.0,0.00036069,2]
[394076777,1763244646262,-246.0,0.00036069,2]
[394076778,1763244646271,-246.0,0.00036069,2]
[394076779,1763244646280,-246.0,0.00036069,2]
[394076780,1763244646289,-246.0,0.00036069,2]
[394076781,1763244646298,-246.0,0.00036069,2]
[394076782,1763244646307,-246.0,0.00036069,2]
[394076783,1763244646317,-246.0,0.00036069,2]
[394076784,1763244646326,-246.0,0.00036069,2]
[394076785,1763244646335,-246.0,0.00036069,2]
[394076786,1763244646344,-5000.0,0.00036103,2]
[394076787,1763244646353,-5000.0,0.00036106,2]
[394076788,1763244646363,-5000.0,0.00036129,2]
[394076789,1763244646373,-5000.0,0.00036138,2]
[394076790,1763244646387,-215.10664739,0.0003615,2]
[394076791,1763244646395,-5000.0,0.00036176,2]
[394076792,1763244646405,-5000.0,0.00036179,2]
[394076793,1763244646414,-222.68,0.000362,14]
[394076794,1763244646423,-300.0,0.00036224,10]
[394076795,1763244646432,-25000.0,0.00036225,2]
[394076796,1763244646441,-25000.0,0.00036225,2]
[394076797,1763244646450,-531.0,0.00036247,30]
[394076798,1763244646459,-175.0,0.00036247,30]
[394076799,1763244646468,-546.0,0.00036247,30]
[394076800,1763244646477,-5000.0,0.00036284,2]
[394076801,1763244646487,-2629.04,0.00036312,2]
[394076802,1763244646496,-2500.0,0.00036325,2]
[394076803,1763244646505,-215.10664739,0.00036344,2]
[394076804,1763244646515,-173.36130234,0.00036367,2]
[394076805,1763244646524,-152.0,0.00036392,3]
[394076806,1763244646534,-5000.0,0.00036395,2]
[394076807,1763244646543,-5000.0,0.00036398,2]
[394076808,1763244646553,-5000.0,0.000364,2]
[394076809,1763244646563,-2500.0,0.00036427,2]
[394076810,1763244646572,-5000.0,0.00036438,2]
[394076811,1763244646581,-5000.0,0.00036471,2]
[394076812,1763244646591,-5000.0,0.00036489,2]
[394076813,1763244646599,-4575.24,0.00036493,2]
[394076814,1763244646608,-5000.0,0.00036498,2]
[394076815,1763244646618,-1801.79,0.000365,2]
[394076816,1763244646627,-5000.0,0.00036503,2]
[394076817,1763244646636,-821.0,0.00036523,2]
[394076818,1763244646645,-200.401,0.00036523,2]
[394076819,1763244646654,-709.513,0.00036523,2]